fUST/lending_fUST_20250623
["ID","MTS","AMOUNT","RATE_DAILY","PERIOD"]
[367140514,1750668845050,-460.0,0.00022191,2]
[367140515,1750668845075,-1600.69,0.00022191,2]
[367140516,1750668845101,-460.0,0.00022191,2]
[367140517,1750668845128,-460.0,0.00022191,2]
[367140518,1750668845155,-1892.11,0.00022191,2]
[367140519,1750668845182,-368.91254908,0.00022191,2]
[367140520,1750668845211,-1319.73,0.00022191,2]
[367140521,1750668845237,-460.0,0.00022191,2]
[367140522,1750668845263,-460.0,0.00022191,2]
[367140523,1750668845288,-460.0,0.00022191,2]
[367140524,1750668845315,-7120.27,0.00022191,2]
[367140525,1750668845341,-460.0,0.00022191,2]
[367140526,1750668845368,-460.0,0.00022191,2]
[367140527,1750668845397,-460.0,0.00022191,2]
[367140528,1750668845422,-460.0,0.00022191,2]
[367140529,1750668845451,-460.0,0.00022191,2]
[367140530,1750668845478,-460.0,0.00022191,2]
[367140531,1750668845505,-1897.26,0.00022191,2]
[367140532,1750668845532,-6904.54,0.00022191,2]
[367140533,1750668845559,-1282.26,0.00022191,2]
[367140534,1750668845586,-460.0,0.00022191,2]
[367140535,1750668845612,-475.37,0.00022191,2]
[367140536,1750668845640,-460.0,0.00022191,2]
[367140537,1750668845668,-2314.79,0.00022191,2]
[367140538,1750668845696,-505.8,0.00022191,2]
[367140539,1750668845725,-460.0,0.00022191,2]
[367140540,1750668845752,-460.0,0.00022191,2]
[367140541,1750668845779,-505.2,0.00022191,2]
[367140542,1750668845806,-460.0,0.00022191,2]
[367140543,1750668845833,-460.0,0.00022191,2]
[367140544,1750668845864,-460.0,0.00022191,2]
[367140545,1750668845891,-460.0,0.00022191,2]
[367140546,1750668845921,-1054.32,0.00022191,2]
[367140547,1750668845950,-2097.28,0.00022191,2]
[367140548,1750668845976,-1100.47,0.00022191,2]
[367140549,1750668846003,-535.95,0.00022191,2]
[367140550,1750668846211,-460.0,0.00022191,2]
[367140551,1750668846239,-1074.69,0.00022191,2]
[367140552,1750668846265,-652.07,0.00022191,2]
[367140553,1750668846292,-460.0,0.00022191,2]
[367140554,1750668846318,-460.0,0.00022191,2]
[367140555,1750668846345,-1231.09,0.00022191,2]
[367140556,1750668846370,-460.0,0.00022191,2]
[367140557,1750668846396,-470.926858,0.00022191,7]
[367140558,1750668846423,-460.0,0.00022191,2]
[367140559,1750668846451,-470.926858,0.00022191,7]
[367140560,1750668846478,-484.57655412,0.00022191,2]
[367140561,1750668846504,-470.926858,0.00022191,7]
[367140562,1750668846530,-470.926858,0.00022191,7]
[367140563,1750668846556,-460.0,0.00022191,2]
[367140564,1750668846583,-431.16236284,0.00022191,2]
[367140565,1750668846611,-6500.87,0.00022191,2]
[367140566,1750668846638,-470.926858,0.00022191,7]
[367140567,1750668846665,-470.926858,0.00022191,7]
[367140568,1750668846693,-470.926858,0.00022191,7]
[367140569,1750668846722,-470.926864,0.00022191,7]
[367140570,1750668846749,-460.0,0.00022191,2]
[367140571,1750668846776,-750.52,0.00022191,2]
[367140572,1750668846804,-460.0,0.00022191,2]
[367140573,1750668846832,-814.26,0.00022191,2]
[367140574,1750668846862,-460.0,0.00022191,2]
[367140575,1750668846890,-460.0,0.00022191,2]
[367140576,1750668846917,-460.0,0.00022191,2]
[367140577,1750668846944,-1178.39,0.00022191,2]
[367140578,1750668846971,-460.0,0.00022191,2]
[367140579,1750668846997,-460.0,0.00022191,2]
[367140580,1750668847024,-460.0,0.00022191,2]
[367140581,1750668847049,-460.0,0.00022191,2]
[367140582,1750668847075,-460.0,0.00022191,2]
[367140583,1750668847104,-460.0,0.00022191,2]
[367140584,1750668847131,-460.0,0.00022191,2]
[367140585,1750668847157,-963.76,0.00022191,2]
[367140586,1750668847182,-461.29345221,0.00022191,2]
[367140587,1750668847208,-1651.31,0.00022191,2]
[367140588,1750668847235,-460.0,0.00022191,2]
[367140589,1750668847260,-1168.55,0.00022191,2]
[367140590,1750668847285,-460.0,0.00022191,2]
[367140591,1750668847310,-810.72,0.00022191,2]
[367140592,1750668847335,-506.13,0.00022191,2]
[367140593,1750668847360,-460.0,0.00022191,2]
[367140594,1750668847390,-640.46,0.00022191,2]
[367140595,1750668847419,-460.0,0.00022191,2]
[367140596,1750668847446,-575.26,0.00022191,2]
[367140597,1750668847474,-304.34348981,0.00022191,2]
[367140598,1750668847501,-1312.86,0.00022191,2]
[367140599,1750668847529,-460.0,0.00022191,2]
[367140600,1750668847557,-460.0,0.00022191,2]
[367140601,1750668847586,-305.82,0.00022191,2]
[367140602,1750668847614,-460.0,0.00022191,2]
[367140603,1750668847643,-460.0,0.00022191,2]
[367140604,1750668847672,-584.29,0.00022191,2]
[367140605,1750668847701,-415.66496305,0.00022191,2]
[367140606,1750668847729,-460.0,0.00022191,2]
[367140607,1750668847759,-824.55,0.00022191,2]
[367140608,1750668847786,-460.0,0.00022191,2]
[367140609,1750668847814,-460.0,0.00022191,2]
[367140610,1750668847845,-696.35,0.00022191,2]
[367140611,1750668847874,-1432.01,0.00022191,2]
[367140612,1750668847900,-389.84937209,0.00022191,2]
[367140613,1750668847929,-541.43,0.00022191,2]
[367140614,1750668847957,-460.0,0.00022191,2]
[367140615,1750668847984,-460.0,0.00022191,2]
[367140616,1750668848012,-367.51572046,0.00022191,2]
[367140617,1750668848040,-1134.45,0.00022191,2]
[367140618,1750668848069,-1318.97,0.00022191,2]
[367140619,1750668848098,-2480.192483,0.00022191,7]
[367140620,1750668848125,-2480.192483,0.00022191,7]
[367140621,1750668848157,-460.0,0.00022191,2]
[367140622,1750668848185,-2480.192483,0.00022191,7]
[367140623,1750668848216,-2480.192483,0.00022191,7]
[367140624,1750668848242,-460.0,0.00022191,2]
[367140625,1750668848269,-460.0,0.00022191,2]
[367140626,1750668848297,-2480.192483,0.00022191,7]
[367140627,1750668848324,-460.0,0.00022191,2]
[367140628,1750668848357,-2480.192483,0.00022191,7]
[367140629,1750668848386,-1160.72,0.00022191,2]
[367140630,1750668848415,-2480.192483,0.00022191,7]
[367140631,1750668848443,-2480.192479,0.00022191,7]
[367140632,1750668848472,-8624.4,0.00022191,2]
[367140633,1750668848500,-530.06,0.00022191,2]
[367140634,1750668848528,-460.0,0.00022191,2]
[367140635,1750668848555,-540.39484939,0.00022191,2]
[367140636,1750668848584,-460.0,0.00022191,2]
[367140637,1750668848611,-727.12,0.00022191,2]
[367140638,1750668848638,-460.0,0.00022191,2]
[367140639,1750668848665,-460.0,0.00022191,2]
[367140640,1750668848692,-460.0,0.00022191,2]
[367140641,1750668848720,-460.0,0.00022191,2]
[367140642,1750668848749,-672.09,0.00022191,2]
[367140643,1750668848944,-3057.12,0.00022191,2]
[367140644,1750668848974,-460.0,0.00022191,2]
[367140645,1750668849003,-460.0,0.00022191,2]
[367140646,1750668849032,-460.0,0.00022191,2]
[367140647,1750668849061,-3812.56,0.00022191,2]
[367140648,1750668849090,-460.0,0.00022191,2]
[367140649,1750668849118,-460.0,0.00022191,2]
[367140650,1750668849177,-460.0,0.00022191,2]
[367140651,1750668849227,-460.0,0.00022191,2]
[367140652,1750668849276,-460.0,0.00022191,2]
[367140653,1750668849326,-460.0,0.00022191,2]
[367140654,1750668849363,-627.42,0.00022191,2]
[367140655,1750668849390,-610.84,0.00022191,2]
[367140656,1750668849416,-460.0,0.00022191,2]
[367140657,1750668849444,-796.2,0.00022191,2]
[367140658,1750668849472,-499.96,0.00022191,2]
[367140659,1750668849498,-363.55677075,0.00022191,2]
[367140660,1750668849526,-2473.62,0.00022191,2]
[367140661,1750668849553,-460.0,0.00022191,2]
[367140662,1750668849582,-460.0,0.00022191,2]
[367140663,1750668849609,-1430.76,0.00022191,2]
[367140664,1750668849637,-892.93,0.00022191,2]
[367140665,1750668849666,-460.0,0.00022191,2]
[367140666,1750668849694,-572.95212871,0.00022191,2]
[367140667,1750668849721,-478.89,0.00022191,2]
[367140668,1750668849748,-460.0,0.00022191,2]
[367140669,1750668849778,-460.0,0.00022191,2]
[367140670,1750668849806,-460.0,0.00022191,2]
[367140671,1750668849833,-5393.99,0.00022191,2]
[367140672,1750668849866,-513.71,0.00022191,2]
[367140673,1750668849894,-460.0,0.00022191,2]
[367140674,1750668849924,-460.0,0.00022191,2]
[367140675,1750668849959,-460.0,0.00022191,2]
[367140676,1750668850011,-1427.01,0.00022191,2]
[367140677,1750668850061,-1585.98,0.00022191,2]
[367140678,1750668850112,-440.0,0.00022191,2]
[367140679,1750668850163,-460.0,0.00022191,2]
[367140680,1750668850205,-460.0,0.00022191,2]
[367140681,1750668850233,-460.0,0.00022191,2]
[367140682,1750668850261,-492.34,0.00022191,2]
[367140683,1750668850290,-3023.47,0.00022191,2]
[367140684,1750668850318,-460.0,0.00022191,2]
[367140685,1750668850346,-460.0,0.00022191,2]
[367140686,1750668850374,-343.03,0.00022191,2]
[367140687,1750668850401,-658.2,0.00022191,2]
[367140688,1750668850428,-460.0,0.00022191,2]
[367140689,1750668850455,-460.0,0.00022191,2]
[367140690,1750668850483,-624.12,0.00022191,2]
[367140691,1750668850509,-2438.96,0.00022191,2]
[367140692,1750668850539,-1488.85,0.00022191,2]
[367140693,1750668850567,-21969.91,0.00022191,2]
[367140694,1750668850595,-5032.78,0.00022191,2]
[367140695,1750668850623,-460.0,0.00022191,2]
[367140696,1750668850655,-2882.28,0.00022191,2]
[367140697,1750668850683,-566.33596718,0.00022191,2]
[367140698,1750668850715,-463.90388818,0.00022191,2]
[367140699,1750668850747,-460.0,0.00022191,2]
[367140700,1750668850780,-300.0,0.00022191,2]
[367140701,1750668850814,-460.0,0.00022191,2]
[367140702,1750668850848,-458.81128958,0.00022191,2]
[367140703,1750668850874,-460.0,0.00022191,2]
[367140704,1750668850907,-460.0,0.00022191,2]
[367140705,1750668850940,-2876.44,0.00022191,2]
[367140706,1750668850972,-460.0,0.00022191,2]
[367140707,1750668851003,-460.0,0.00022191,2]
[367140708,1750668851030,-460.0,0.00022191,2]
[367140709,1750668851077,-975.76,0.00022191,2]
[367140710,1750668851107,-460.0,0.00022191,2]
[367140711,1750668851138,-744.21,0.00022191,2]
[367140712,1750668851167,-460.0,0.00022191,2]
[367140713,1750668851197,-165.87209766,0.00022191,2]
[367140714,1750668851226,-1205.15,0.00022191,2]
[367140715,1750668851252,-774.21,0.00022191,2]
[367140716,1750668851279,-1607.5,0.00022191,2]
[367140717,1750668851305,-500.0,0.00022218,2]
[367140718,1750668851331,-468.96,0.00022246,2]
[367140719,1750668851358,-160.149568,0.00022273,7]
[367140720,1750668851383,-160.149568,0.00022273,7]
[367140721,1750668851409,-193.934899,0.00022273,7]
[367140722,1750668851435,-193.934899,0.00022273,7]
[367140723,1750668851461,-177.249203,0.00022273,7]
[367140724,1750668851487,-1000.0,0.0002238,2]
[367140725,1750668851513,-2000.0,0.000224,3]
[367140726,1750668851540,-151.0,0.000224,7]
[367140727,1750668851566,-212.587993,0.000224,7]
[367140728,1750668851593,-212.587993,0.000224,7]
[367140729,1750668851619,-151.0,0.000224,7]
[367140730,1750668851646,-217.293718,0.000224,7]
[367140731,1750668851675,-217.293718,0.000224,7]
[367140732,1750668851705,-466.976012,0.000224,7]
[367140733,1750668851735,-466.976012,0.000224,7]
[367140734,1750668851763,-585.403763,0.000224,7]
[367140735,1750668851788,-585.403763,0.000224,7]
[367140736,1750668851814,-585.403763,0.000224,7]
[367140737,1750668852042,-585.403763,0.000224,7]
[367140738,1750668852071,-151.0,0.000224,7]
[367140739,1750668852097,-151.0,0.000224,7]
[367140740,1750668852125,-381.63697,0.000224,7]
[367140741,1750668852153,-381.63697,0.000224,7]
[367140742,1750668852180,-160.149568,0.000224,7]
[367140743,1750668852208,-160.149568,0.000224,7]
[367140744,1750668852234,-193.934899,0.000224,7]
[367140745,1750668852260,-193.934891,0.000224,7]
[367140746,1750668852286,-151.0,0.000224,2]
[367140747,1750668852312,-196.761364,0.000224,7]
[367140748,1750668852339,-2000.0,0.00022428,2]
[367140749,1750668852365,-380.81715279,0.00022465,2]
[367140750,1750668852394,-16181.72571853,0.00022465,2]
[367140751,1750668852421,-530.23,0.00022465,2]
[367140752,1750668852448,-160.841049,0.00022465,7]
[367140753,1750668852476,-460.0,0.00022465,2]
[367140754,1750668852503,-212.587993,0.00022465,7]
[367140755,1750668852529,-212.587993,0.00022465,7]
[367140756,1750668852557,-212.587993,0.00022465,7]
[367140757,1750668852585,-212.587993,0.00022465,7]
[367140758,1750668852616,-151.0,0.00022465,7]
[367140759,1750668852642,-151.0,0.00022465,7]
[367140760,1750668852671,-217.293718,0.00022465,7]
[367140761,1750668852700,-217.293718,0.00022465,7]
[367140762,1750668852729,-217.293718,0.00022465,7]
[367140763,1750668852758,-217.293718,0.00022465,7]
[367140764,1750668852788,-466.976012,0.00022465,7]
[367140765,1750668852816,-466.976012,0.00022465,7]
[367140766,1750668852848,-585.403763,0.00022465,7]
[367140767,1750668852880,-585.403763,0.00022465,7]
[367140768,1750668852917,-585.403763,0.00022465,7]
[367140769,1750668852946,-585.403766,0.00022465,7]
[367140770,1750668852974,-151.0,0.00022465,7]
[367140771,1750668853002,-151.0,0.00022465,7]
[367140772,1750668853031,-460.0,0.00022465,2]
[367140773,1750668853057,-460.0,0.00022465,2]
[367140774,1750668853086,-381.63697,0.00022465,7]
[367140775,1750668853114,-381.63697,0.00022465,7]
[367140776,1750668853142,-460.0,0.00022465,2]
[367140777,1750668853168,-534.11,0.00022465,2]
[367140778,1750668853196,-460.0,0.00022465,2]
[367140779,1750668853225,-160.149568,0.00022465,7]
[367140780,1750668853253,-160.149577,0.00022465,7]
[367140781,1750668853282,-460.0,0.00022465,2]
[367140782,1750668853310,-460.0,0.00022465,2]
[367140783,1750668853341,-460.0,0.00022465,2]
[367140784,1750668853369,-165.82536997,0.00022465,2]
[367140785,1750668853400,-497.65,0.00022465,2]
[367140786,1750668853430,-572.79,0.00022465,2]
[367140787,1750668853458,-271.96392025,0.00022465,2]
[367140788,1750668853488,-460.0,0.00022465,2]
[367140789,1750668853518,-460.0,0.00022465,2]
[367140790,1750668853546,-460.0,0.00022465,2]
[367140791,1750668853574,-460.0,0.00022465,2]
[367140792,1750668853606,-460.0,0.00022465,2]
[367140793,1750668853634,-460.0,0.00022465,2]
[367140794,1750668853662,-460.0,0.00022465,2]
[367140795,1750668853690,-460.0,0.00022465,2]
[367140796,1750668853716,-460.0,0.00022465,2]
[367140797,1750668853744,-460.0,0.00022465,2]
[367140798,1750668853773,-921.68,0.00022465,2]
[367140799,1750668853799,-460.0,0.00022465,2]
[367140800,1750668853826,-460.0,0.00022465,2]
[367140801,1750668853855,-460.0,0.00022465,2]
[367140802,1750668853880,-460.0,0.00022465,2]
[367140803,1750668853906,-731.54,0.00022465,2]
[367140804,1750668853934,-460.0,0.00022465,2]
[367140805,1750668853960,-460.0,0.00022465,2]
[367140806,1750668853986,-460.0,0.00022465,2]
[367140807,1750668854013,-423.31473191,0.00022465,2]
[367140808,1750668854044,-460.0,0.00022465,2]
[367140809,1750668854070,-460.0,0.00022465,2]
[367140810,1750668854096,-460.0,0.00022465,2]
[367140811,1750668854124,-460.0,0.00022465,2]
[367140812,1750668854149,-460.0,0.00022465,2]
[367140813,1750668854173,-492.05,0.00022465,2]
[367140814,1750668854197,-761.39,0.00022465,2]
[367140815,1750668854222,-761.39,0.00022465,2]
[367140816,1750668854246,-441.09361614,0.00022465,2]
[367140817,1750668854271,-460.0,0.00022465,2]
[367140818,1750668854295,-460.0,0.00022465,2]
[367140819,1750668854318,-460.0,0.00022465,2]
[367140820,1750668854343,-460.0,0.00022465,2]
[367140821,1750668854368,-460.0,0.00022465,2]
[367140822,1750668854393,-460.0,0.00022465,2]
[367140823,1750668854419,-436.89342291,0.00022465,2]
[367140824,1750668854445,-460.0,0.00022465,2]
[367140825,1750668854470,-460.0,0.00022465,2]
[367140826,1750668854496,-593.13,0.00022465,2]
[367140827,1750668854522,-460.0,0.00022465,2]
[367140828,1750668854548,-665.94,0.00022465,2]
[367140829,1750668854574,-848.27,0.00022465,2]
[367140830,1750668854600,-460.0,0.00022465,2]
[367140831,1750668854783,-460.0,0.00022465,2]
[367140832,1750668854814,-492.98,0.00022465,2]
[367140833,1750668854844,-460.0,0.00022465,2]
[367140834,1750668854871,-482.77,0.00022465,2]
[367140835,1750668854899,-464.61,0.00022465,2]
[367140836,1750668854927,-934.42,0.00022465,2]
[367140837,1750668854954,-151.0,0.00022465,7]
[367140838,1750668854983,-273.55702208,0.00022465,2]
[367140839,1750668855010,-460.0,0.00022465,2]
[367140840,1750668855037,-460.0,0.00022465,2]
[367140841,1750668855063,-460.0,0.00022465,2]
[367140842,1750668855090,-695.7,0.00022465,2]
[367140843,1750668855116,-460.0,0.00022465,2]
[367140844,1750668855144,-460.0,0.00022465,2]
[367140845,1750668855172,-151.0,0.00022465,7]
[367140846,1750668855199,-460.0,0.00022465,2]
[367140847,1750668855227,-708.57,0.00022465,2]
[367140848,1750668855254,-193.60071197,0.00022465,2]
[367140849,1750668855282,-460.0,0.00022465,2]
[367140850,1750668855309,-460.0,0.00022465,2]
[367140851,1750668855337,-460.0,0.00022465,2]
[367140852,1750668855365,-189.43911848,0.00022465,2]
[367140853,1750668855392,-460.0,0.00022465,2]
[367140854,1750668855420,-198.412335,0.00022465,7]
[367140855,1750668855448,-198.412338,0.00022465,7]
[367140856,1750668855477,-460.0,0.00022465,2]
[367140857,1750668855507,-460.0,0.00022465,2]
[367140858,1750668855536,-172.428838,0.00022465,7]
[367140859,1750668855565,-172.428842,0.00022465,7]
[367140860,1750668855592,-460.0,0.00022465,2]
[367140861,1750668855618,-460.0,0.00022465,2]
[367140862,1750668855646,-460.0,0.00022465,2]
[367140863,1750668855675,-573.56333278,0.00022465,2]
[367140864,1750668855704,-460.0,0.00022465,2]
[367140865,1750668855734,-460.0,0.00022465,2]
[367140866,1750668855764,-460.0,0.00022465,2]
[367140867,1750668855792,-460.0,0.00022465,2]
[367140868,1750668855820,-460.0,0.00022465,2]
[367140869,1750668855848,-460.0,0.00022465,2]
[367140870,1750668855876,-536.46974944,0.00022465,2]
[367140871,1750668855903,-460.0,0.00022465,2]
[367140872,1750668855930,-3686.23,0.00022465,2]
[367140873,1750668855957,-460.0,0.00022465,2]
[367140874,1750668855983,-460.0,0.00022465,2]
[367140875,1750668856009,-451.48385704,0.00022465,2]
[367140876,1750668856035,-460.0,0.00022465,2]
[367140877,1750668856061,-460.0,0.00022465,2]
[367140878,1750668856087,-539.04,0.00022465,2]
[367140879,1750668856113,-460.0,0.00022465,2]
[367140880,1750668856139,-460.0,0.00022465,2]
[367140881,1750668856165,-460.0,0.00022465,2]
[367140882,1750668856193,-460.0,0.00022465,2]
[367140883,1750668856220,-1020.25,0.00022465,2]
[367140884,1750668856247,-1295.91,0.00022465,2]
[367140885,1750668856275,-460.0,0.00022465,2]
[367140886,1750668856300,-460.0,0.00022465,2]
[367140887,1750668856327,-717.54,0.00022465,2]
[367140888,1750668856354,-999.86,0.00022465,2]
[367140889,1750668856381,-544.8,0.00022465,2]
[367140890,1750668856408,-460.0,0.00022465,2]
[367140891,1750668856435,-464.50517288,0.00022465,2]
[367140892,1750668856465,-460.0,0.00022465,2]
[367140893,1750668856495,-572.94,0.00022465,2]
[367140894,1750668856524,-460.0,0.00022465,2]
[367140895,1750668856553,-460.0,0.00022465,2]
[367140896,1750668856582,-460.0,0.00022465,2]
[367140897,1750668856612,-1054.25,0.00022465,2]
[367140898,1750668856639,-460.0,0.00022465,2]
[367140899,1750668856667,-460.0,0.00022465,2]
[367140900,1750668856694,-460.0,0.00022465,2]
[367140901,1750668856722,-460.0,0.00022465,2]
[367140902,1750668856749,-460.0,0.00022465,2]
[367140903,1750668856777,-598.98,0.00022465,2]
[367140904,1750668856805,-460.0,0.00022465,2]
[367140905,1750668856834,-860.41,0.00022465,2]
[367140906,1750668856867,-460.0,0.00022465,2]
[367140907,1750668856893,-460.0,0.00022465,2]
[367140908,1750668856920,-551.12,0.00022465,2]
[367140909,1750668856947,-460.0,0.00022465,2]
[367140910,1750668856973,-460.0,0.00022465,2]
[367140911,1750668857000,-460.0,0.00022465,2]
[367140912,1750668857026,-460.0,0.00022465,2]
[367140913,1750668857052,-527.1,0.00022465,2]
[367140914,1750668857078,-460.0,0.00022465,2]
[367140915,1750668857105,-460.0,0.00022465,2]
[367140916,1750668857131,-432.2430259,0.00022465,2]
[367140917,1750668857156,-460.0,0.00022465,2]
[367140918,1750668857182,-461.24,0.00022465,2]
[367140919,1750668857208,-198.16964142,0.00022465,2]
[367140920,1750668857234,-460.0,0.00022465,2]
[367140921,1750668857260,-460.0,0.00022465,2]
[367140922,1750668857287,-460.0,0.00022465,2]
[367140923,1750668857313,-460.0,0.00022465,2]
[367140924,1750668857341,-497.56,0.00022465,2]
[367140925,1750668857518,-477.04,0.00022465,2]
[367140926,1750668857550,-460.0,0.00022465,2]
[367140927,1750668857581,-460.0,0.00022465,2]
[367140928,1750668857612,-460.0,0.00022465,2]
[367140929,1750668857642,-460.0,0.00022465,2]
[367140930,1750668857671,-510.01214265,0.00022465,2]
[367140931,1750668857702,-929.14,0.00022465,2]
[367140932,1750668857732,-1851.05,0.00022465,2]
[367140933,1750668857761,-460.0,0.00022465,2]
[367140934,1750668857792,-902.17,0.00022465,2]
[367140935,1750668857821,-797.37,0.00022465,2]
[367140936,1750668857851,-460.0,0.00022465,2]
[367140937,1750668857879,-1034.76,0.00022465,2]
[367140938,1750668857909,-460.0,0.00022465,2]
[367140939,1750668857940,-460.0,0.00022465,2]
[367140940,1750668857968,-292.98998518,0.00022465,2]
[367140941,1750668857996,-460.0,0.00022465,2]
[367140942,1750668858024,-460.0,0.00022465,2]
[367140943,1750668858052,-1225.47,0.00022465,2]
[367140944,1750668858081,-460.0,0.00022465,2]
[367140945,1750668858110,-460.0,0.00022465,2]
[367140946,1750668858137,-1021.16,0.00022465,2]
[367140947,1750668858167,-460.0,0.00022465,2]
[367140948,1750668858194,-460.0,0.00022465,2]
[367140949,1750668858221,-460.0,0.00022465,2]
[367140950,1750668858249,-460.0,0.00022465,2]
[367140951,1750668858277,-294.76618974,0.00022465,2]
[367140952,1750668858304,-460.0,0.00022465,2]
[367140953,1750668858333,-460.0,0.00022465,2]
[367140954,1750668858362,-460.0,0.00022465,2]
[367140955,1750668858390,-460.0,0.00022465,2]
[367140956,1750668858422,-460.0,0.00022465,2]
[367140957,1750668858451,-460.0,0.00022465,2]
[367140958,1750668858480,-460.0,0.00022465,2]
[367140959,1750668858509,-460.0,0.00022465,2]
[367140960,1750668858538,-460.0,0.00022465,2]
[367140961,1750668858566,-772.79,0.00022465,2]
[367140962,1750668858595,-777.6,0.00022465,2]
[367140963,1750668858623,-460.0,0.00022465,2]
[367140964,1750668858653,-851.87,0.00022465,2]
[367140965,1750668858684,-460.0,0.00022465,2]
[367140966,1750668858714,-511.17,0.00022465,2]
[367140967,1750668858743,-460.0,0.00022465,2]
[367140968,1750668858772,-516.66,0.00022465,2]
[367140969,1750668858800,-283.086631,0.00022465,2]
[367140970,1750668858831,-2232.98,0.00022465,2]
[367140971,1750668858864,-532.41,0.00022465,2]
[367140972,1750668858894,-460.0,0.00022465,2]
[367140973,1750668858922,-460.0,0.00022465,2]
[367140974,1750668858951,-460.0,0.00022465,2]
[367140975,1750668858981,-805.5,0.00022465,2]
[367140976,1750668859009,-469.39,0.00022465,2]
[367140977,1750668859037,-460.0,0.00022465,2]
[367140978,1750668859064,-1090.19,0.00022465,2]
[367140979,1750668859092,-460.0,0.00022465,2]
[367140980,1750668859120,-652.16,0.00022465,2]
[367140981,1750668859149,-460.0,0.00022465,2]
[367140982,1750668859178,-460.0,0.00022465,2]
[367140983,1750668859206,-475.03,0.00022465,2]
[367140984,1750668859243,-460.0,0.00022465,2]
[367140985,1750668859272,-460.0,0.00022465,2]
[367140986,1750668859300,-460.0,0.00022465,2]
[367140987,1750668859328,-514.80969788,0.00022465,2]
[367140988,1750668859356,-460.0,0.00022465,2]
[367140989,1750668859384,-1219.76,0.00022465,2]
[367140990,1750668859421,-460.0,0.00022465,2]
[367140991,1750668859459,-214.17903174,0.00022465,2]
[367140992,1750668859500,-460.0,0.00022465,2]
[367140993,1750668859538,-460.0,0.00022465,2]
[367140994,1750668859581,-460.0,0.00022465,2]
[367140995,1750668859625,-460.0,0.00022465,2]
[367140996,1750668859666,-460.0,0.00022465,2]
[367140997,1750668859703,-460.0,0.00022465,2]
[367140998,1750668859742,-1079.84,0.00022465,2]
[367141000,1750668859784,-340.05117822,0.00022465,2]
[367141001,1750668859821,-460.0,0.00022465,2]
[367141002,1750668859856,-460.0,0.00022465,2]
[367141003,1750668859895,-460.0,0.00022465,2]
[367141004,1750668859934,-460.0,0.00022465,2]
[367141005,1750668859967,-466.34545159,0.00022465,2]
[367141006,1750668860002,-460.0,0.00022465,2]
[367141007,1750668860038,-460.0,0.00022465,2]
[367141008,1750668860074,-500.0,0.00022465,2]
[367141009,1750668860107,-475.18,0.00022465,2]
[367141010,1750668860140,-460.0,0.00022465,2]
[367141011,1750668860172,-1001.9,0.00022465,2]
[367141012,1750668860205,-460.0,0.00022465,2]
[367141013,1750668860239,-460.0,0.00022465,2]
[367141014,1750668860273,-838.24,0.00022465,2]